fUSD/lending_fUSD_20250630
["ID","MTS","AMOUNT","RATE_DAILY","PERIOD"]
[368675299,1751291667790,-2670.73,0.00013992,2]
[368675300,1751291667810,-886.31,0.00013992,2]
[368675301,1751291667843,-490.0,0.00013992,2]
[368675302,1751291667903,-1905.92,0.00013992,2]
[368675303,1751291667936,-2204.05923034,0.00013992,2]
[368675304,1751291667957,-5591.88153932,0.00013992,2]
[368675305,1751291667991,-10000.0,0.00013992,2]
[368675306,1751291668029,-661.57279221,0.00013992,2]
[368675307,1751291668054,-8676.85441558,0.00013992,2]
[368675308,1751291668063,-490.0,0.00013997,2]
[368675309,1751291668073,-171.57279221,0.00013998,2]
[368675310,1751291668212,-718.42720779,0.00013998,2]
[368675311,1751291668241,-150.99,0.00013998,2]
[368675312,1751291668272,-1796.97,0.00013998,2]
[368675313,1751291668302,-602.25,0.00013998,2]
[368675314,1751291668332,-490.0,0.00013998,2]
[368675315,1751291668362,-1229.20558442,0.00013998,2]
[368675316,1751291668433,-24.31441558,0.00013998,2]
[368675317,1751291668443,-490.0,0.00013998,2]
[368675318,1751291668452,-668.86,0.00013998,2]
[368675319,1751291668461,-742.31,0.00013998,2]
[368675320,1751291668471,-1008.7,0.00013998,2]
[368675321,1751291668480,-604.94,0.00013998,2]
[368675322,1751291668490,-188.37123094,0.00013998,2]
[368675323,1751291668500,-940.28,0.00013998,2]
[368675324,1751291668510,-344.38156127,0.00013998,2]
[368675325,1751291668556,184.2,0.00013072,2]
[368675326,1751291668636,-145.61843873,0.00013998,2]
[368675327,1751291668646,-490.0,0.00013998,2]
[368675328,1751291668655,-490.0,0.00013998,2]
[368675329,1751291668664,-490.0,0.00013998,2]
[368675330,1751291668674,-490.0,0.00013998,2]
[368675331,1751291668683,-510.86,0.00013998,2]
[368675332,1751291668693,-730.44,0.00013998,2]
[368675333,1751291668702,-490.0,0.00013998,2]
[368675334,1751291668711,-491.553982,0.00013998,2]
[368675335,1751291668720,-1384.94,0.00013998,2]
[368675336,1751291668730,-490.0,0.00013998,2]
[368675337,1751291668739,-674.69,0.00013998,2]
[368675338,1751291668749,-490.44184366,0.00013998,2]
[368675339,1751291668759,-490.0,0.00013998,2]
[368675340,1751291668768,-570.95,0.00013998,2]
[368675341,1751291668777,-490.0,0.00013998,2]
[368675342,1751291668787,-667.3,0.00013998,2]
[368675343,1751291668798,-413.20573561,0.00013998,2]
[368675344,1751291668854,-76.79426439,0.00013998,2]
[368675345,1751291668885,-668.82,0.00013998,2]
[368675346,1751291668915,-490.0,0.00013998,2]
[368675347,1751291668945,-724.92,0.00013998,2]
[368675348,1751291668976,-490.0,0.00013998,2]
[368675349,1751291669007,-490.0,0.00013998,2]
[368675350,1751291669040,-490.0,0.00013998,2]
[368675351,1751291669070,-630.71,0.00013998,2]
[368675352,1751291669102,-490.0,0.00013998,2]
[368675353,1751291669132,-407.51147122,0.00013998,2]
[368675354,1751291669475,-82.48852878,0.00013998,2]
[368675355,1751291669485,-490.0,0.00013998,2]
[368675356,1751291669494,-490.0,0.00013998,2]
[368675357,1751291669503,-490.0,0.00013998,2]
[368675358,1751291669512,-791.02,0.00013998,2]
[368675359,1751291669522,-490.0,0.00013998,2]
[368675360,1751291669531,-853.66,0.00013998,2]
[368675361,1751291669541,-533.46,0.00013998,2]
[368675362,1751291669551,-490.0,0.00013998,2]
[368675363,1751291669560,-330.61573561,0.00013998,2]
[368675364,1751291669576,-644.38426439,0.00013998,2]
[368675365,1751291669585,-490.0,0.00013998,2]
[368675366,1751291669594,-490.0,0.00013998,2]
[368675367,1751291669603,-490.0,0.00013998,2]
[368675368,1751291669613,-1389.51,0.00013998,2]
[368675369,1751291669623,-528.05,0.00013998,2]
[368675370,1751291669633,-1669.46,0.00013998,2]
[368675371,1751291669643,-490.0,0.00013998,2]
[368675372,1751291669653,-500.0,0.00013998,2]
[368675373,1751291669663,-1455.04,0.00013998,2]
[368675374,1751291669672,-490.0,0.00013998,2]
[368675375,1751291669682,-490.0,0.00013998,2]
[368675376,1751291669692,-490.0,0.00013998,2]
[368675377,1751291669702,-383.55573561,0.00013998,2]
[368675378,1751291669748,-809.55426439,0.00013998,2]
[368675379,1751291669780,-718.85,0.00013998,2]
[368675380,1751291669814,-490.0,0.00013998,2]
[368675381,1751291669846,-740.39,0.00013998,2]
[368675382,1751291669877,-1151.44,0.00013998,2]
[368675383,1751291669908,-796.88,0.00013998,2]
[368675384,1751291669986,-630.61333792,0.00013998,2]
[368675385,1751291670019,-824.58,0.00013998,2]
[368675386,1751291670051,-737.11,0.00013998,2]
[368675387,1751291670081,-490.0,0.00013998,2]
[368675388,1751291670115,-490.0,0.00013998,2]
[368675389,1751291670146,-725.78,0.00013998,2]
[368675390,1751291670176,-939.14,0.00013998,2]
[368675391,1751291670300,-246.12013976,0.00013998,2]
[368675392,1751291670315,-243.87986024,0.00013998,2]
[368675393,1751291670324,-1459.9,0.00013998,2]
[368675394,1751291670333,-490.0,0.00013998,2]
[368675395,1751291670343,-668.41,0.00013998,2]
[368675396,1751291670352,-1468.56,0.00013998,2]
[368675397,1751291670361,-490.0,0.00013998,2]
[368675398,1751291670370,-490.0,0.00013998,2]
[368675399,1751291670380,-860.38,0.00013998,2]
[368675400,1751291670389,-490.0,0.00013998,2]
[368675401,1751291670398,-490.0,0.00013998,2]
[368675402,1751291670408,-2412.7,0.00013998,2]
[368675403,1751291670417,-436.17013976,0.00013998,2]
[368675404,1751291670490,-53.82986024,0.00013998,2]
[368675405,1751291670520,-490.0,0.00013998,2]
[368675406,1751291670551,-490.0,0.00013998,2]
[368675407,1751291670582,-490.0,0.00013998,2]
[368675408,1751291670611,-649.97,0.00013998,2]
[368675409,1751291670642,-490.0,0.00013998,2]
[368675410,1751291670672,-490.0,0.00013998,2]
[368675411,1751291670701,-490.0,0.00013998,2]
[368675412,1751291670730,-1046.83027952,0.00013998,2]
[368675413,1751291670879,-618.73972048,0.00013998,2]
[368675414,1751291670889,-899.81,0.00013998,2]
[368675415,1751291670898,-490.0,0.00013998,2]
[368675416,1751291670908,-418.62223658,0.00013998,2]
[368675417,1751291670916,-490.0,0.00013998,2]
[368675418,1751291670926,-1212.13,0.00013998,2]
[368675419,1751291670935,-322.05022354,0.00013998,2]
[368675420,1751291670945,-490.0,0.00013998,2]
[368675421,1751291670954,-368.01767964,0.00013998,2]
[368675422,1751291671071,-121.98232036,0.00013998,2]
[368675423,1751291671080,-1730.43,0.00013998,2]
[368675424,1751291671093,-490.0,0.00013998,2]
[368675425,1751291671104,-490.0,0.00013998,2]
[368675426,1751291671113,-490.0,0.00013998,2]
[368675427,1751291671123,-490.0,0.00013998,2]
[368675428,1751291671133,-490.0,0.00013998,2]
[368675429,1751291671143,-1820.41,0.00013998,2]
[368675430,1751291671152,-490.0,0.00013998,2]
[368675431,1751291671162,-490.0,0.00013998,2]
[368675432,1751291671172,-1514.04,0.00013998,2]
[368675433,1751291671181,-490.0,0.00013998,2]
[368675434,1751291671191,-231.56488743,0.00013998,2]
[368675435,1751291671883,-529.94511257,0.00013998,2]
[368675436,1751291671913,-596.71,0.00013998,2]
[368675437,1751291671943,-771.26,0.00013998,2]
[368675438,1751291671972,-616.82,0.00013998,2]
[368675439,1751291672002,-1059.78,0.00013998,2]
[368675440,1751291672031,-490.0,0.00013998,2]
[368675441,1751291672061,-542.8,0.00013998,2]
[368675442,1751291672093,-295.36977486,0.00013998,2]
[368675443,1751291672228,-194.63022514,0.00013998,2]
[368675444,1751291672544,-490.0,0.00013998,2]
[368675445,1751291672574,-490.0,0.00013998,2]
[368675446,1751291672603,-490.0,0.00013998,2]
[368675447,1751291672631,-490.0,0.00013998,2]
[368675448,1751291672660,-490.0,0.00013998,2]
[368675449,1751291672688,-540.61,0.00013998,2]
[368675450,1751291672716,-490.0,0.00013998,2]
[368675451,1751291672745,-945.08,0.00013998,2]
[368675452,1751291672774,-269.35954972,0.00013998,2]
[368675453,1751291673016,-220.64045028,0.00013998,2]
[368675454,1751291673049,-490.0,0.00013998,2]
[368675455,1751291673079,-490.0,0.00013998,2]
[368675456,1751291673113,-690.24,0.00013998,2]
[368675457,1751291673143,-1298.97,0.00013998,2]
[368675458,1751291673173,-490.0,0.00013998,2]
[368675459,1751291673204,-1073.49909944,0.00013998,2]
[368675460,1751291673248,-493.30090056,0.00013998,2]
[368675461,1751291673278,-1470.48,0.00013998,2]
[368675462,1751291673309,-151.0,0.00013998,2]
[368675463,1751291673340,-188.866234,0.00013998,2]
[368675464,1751291673371,-490.0,0.00013998,2]
[368675465,1751291673401,-490.0,0.00013998,2]
[368675466,1751291673431,-997.64,0.00013998,2]
[368675467,1751291673462,-248.43573088,0.00013998,2]
[368675468,1751291673515,-940.55426912,0.00013998,2]
[368675469,1751291673547,-490.0,0.00013998,2]
[368675470,1751291673579,-1777.69146176,0.00013998,2]
[368675471,1751291673929,-3583.50853824,0.00013998,2]
[368675472,1751291673961,-1406.87,0.00013998,2]
[368675473,1751291674135,-1755.38,0.00013998,2]
[368675474,1751291674166,-830.86,0.00013998,2]
[368675475,1751291674199,-1523.88,0.00013998,2]
[368675476,1751291674228,-506.8,0.00013998,2]
[368675477,1751291674275,-1001.97,0.00013998,2]
[368675478,1751291674305,-151.0,0.00013998,2]
[368675479,1751291674334,-151.0,0.00013998,2]
[368675480,1751291674363,-151.0,0.00013998,2]
[368675481,1751291674392,-151.0,0.00013998,2]
[368675482,1751291674421,-151.0,0.00013998,2]
[368675483,1751291674450,-151.0,0.00013998,2]
[368675484,1751291674478,-151.0,0.00013998,2]
[368675485,1751291674509,-151.0,0.00013998,2]
[368675486,1751291674538,-186.797702,0.00013998,2]
[368675487,1751291674568,-2593.75,0.00013998,2]
[368675488,1751291674749,-1106.04,0.00013998,2]
[368675489,1751291674779,-490.0,0.00013998,2]
[368675490,1751291674812,-2299.18,0.00013998,2]
[368675491,1751291675012,-2209.56,0.00013998,2]
[368675492,1751291675044,-490.0,0.00013998,2]
[368675493,1751291675075,-717.88,0.00013998,2]
[368675494,1751291675520,-3165.12,0.00013998,2]
[368675495,1751291675551,-490.0,0.00013998,2]
[368675496,1751291675580,-490.0,0.00013998,2]
[368675497,1751291675612,-668.84,0.00013998,2]
[368675498,1751291675938,-372.08,0.00013998,2]
[368675499,1751291675971,-1812.03,0.00013998,2]
[368675500,1751291676003,-1227.31,0.00013998,2]
[368675501,1751291676243,-490.0,0.00013998,2]
[368675502,1751291676274,-697.16,0.00013998,2]
[368675503,1751291676428,-802.84,0.00013998,2]
[368675504,1751291676458,-612.73,0.00013998,2]
[368675505,1751291676488,-3268.25,0.00013998,2]
[368675506,1751291676540,-4705.96,0.00013998,2]
[368675507,1751291676570,-60.28,0.00013998,2]
[368675508,1751291676778,-467.52,0.00013998,2]
[368675509,1751291676809,-490.0,0.00013998,2]
[368675510,1751291676840,-2687.82,0.00013998,2]
[368675511,1751291676872,-838.08,0.00013998,2]
[368675512,1751291676904,-500.0,0.00013998,2]
[368675513,1751291677282,-490.0,0.00013998,2]
[368675514,1751291677312,-1115.17,0.00013998,2]
[368675515,1751291677341,-2876.53,0.00013998,2]
[368675516,1751291677424,-1036.6,0.00013998,2]
[368675517,1751291677464,-490.0,0.00013998,2]
[368675518,1751291677495,-490.0,0.00013998,2]
[368675519,1751291677525,-996.32,0.00013998,2]
[368675520,1751291677555,-490.0,0.00013998,2]
[368675521,1751291677584,-490.0,0.00013998,2]
[368675522,1751291677614,-336.54,0.00013998,2]
[368675523,1751291677698,-1341.08,0.00013998,2]
[368675524,1751291677729,-2184.77,0.00013998,2]
[368675525,1751291677766,-2948.3,0.00013998,2]
[368675526,1751291677796,-490.0,0.00013998,2]
[368675527,1751291677828,-490.0,0.00013998,2]
[368675528,1751291677860,-490.0,0.00013998,2]
[368675529,1751291677890,-364.73,0.00013998,2]
[368675530,1751291677931,-433.94,0.00013998,2]
[368675531,1751291677963,-490.0,0.00013998,2]
[368675532,1751291677994,-1921.66,0.00013998,2]
[368675533,1751291678024,-490.0,0.00013998,2]
[368675534,1751291678055,-490.0,0.00013998,2]
[368675535,1751291678112,-209.54225793,0.000139,2]
[368675536,1751291678147,-2863.83,0.00013998,2]
[368675537,1751291678177,-314.29548414,0.00013998,2]
[368675538,1751291678305,-3224.66451586,0.00013998,2]
[368675539,1751291678335,-1176.08,0.00013998,2]
[368675540,1751291678367,-490.0,0.00013998,2]
[368675541,1751291678728,-490.0,0.00013998,2]
[368675542,1751291678759,-525.33,0.00013998,2]
[368675543,1751291678790,-3543.33,0.00013998,2]
[368675544,1751291679244,-886.15,0.00013998,2]
[368675545,1751291679285,-1657.25,0.00013998,2]
[368675546,1751291679329,-1363.23,0.00013998,2]
[368675547,1751291679369,-965.4,0.00013998,2]
[368675548,1751291679542,-490.0,0.00013998,2]
[368675549,1751291679590,-3242.26,0.00013998,2]
[368675550,1751291679634,-490.0,0.00013998,2]
[368675551,1751291679678,-502.62755778,0.00013998,2]
[368675552,1751291685925,-209.54225793,0.000139,2]
[368675553,1751291685935,-683.85,0.00013997,2]
[368675554,1751291685946,-1090.16091059,0.00013997,2]
[368675555,1751291685985,-1036.6,0.00013997,2]
[368675556,1751291686016,-490.0,0.00013997,2]
[368675557,1751291686235,-490.0,0.00013997,2]
[368675558,1751291686283,-996.32,0.00013997,2]
[368675559,1751291686322,-490.0,0.00013997,2]
[368675560,1751291686352,-490.0,0.00013997,2]
[368675561,1751291686389,-1677.62,0.00013997,2]
[368675562,1751291686417,-1341.08,0.00013997,2]
[368675563,1751291686445,-5133.07,0.00013997,2]
[368675564,1751291686490,-2948.3,0.00013997,2]
[368675565,1751291686532,-490.0,0.00013997,2]
[368675566,1751291686560,-490.0,0.00013997,2]
[368675567,1751291686661,-490.0,0.00013997,2]
[368675568,1751291686734,-798.67,0.00013997,2]
[368675569,1751291686764,-433.94,0.00013997,2]
[368675570,1751291686796,-490.0,0.00013997,2]
[368675571,1751291686833,-1921.66,0.00013997,2]
[368675572,1751291686867,-490.0,0.00013997,2]
[368675573,1751291686905,-490.0,0.00013997,2]
[368675574,1751291686933,-2348.8,0.00013997,2]
[368675575,1751291686967,-209.54225793,0.00013997,2]
[368675576,1751291686995,-2863.83,0.00013997,2]
[368675577,1751291687022,-3538.96,0.00013997,2]
[368675578,1751291687075,-3224.66451586,0.00013997,2]
[368675579,1751291687111,-1176.08,0.00013997,2]
[368675580,1751291687146,-490.0,0.00013997,2]
[368675581,1751291687175,-218.51096828,0.00013997,2]
[368675582,1751291687532,-490.0,0.00013997,2]
[368675583,1751291687574,-525.33,0.00013997,2]
[368675584,1751291687603,-3543.33,0.00013997,2]
[368675585,1751291687632,-882.68,0.00013997,2]
[368675586,1751291687785,-886.15,0.00013997,2]
[368675587,1751291687830,-1657.25,0.00013997,2]
[368675588,1751291687950,-1363.23,0.00013997,2]
[368675589,1751291688000,-965.4,0.00013997,2]
[368675590,1751291688027,-255.94,0.00013997,2]
[368675591,1751291688057,-490.0,0.00013997,2]
[368675592,1751291688109,-3242.26,0.00013997,2]
[368675593,1751291688183,-490.0,0.00013997,2]
[368675594,1751291688217,-502.62755778,0.00013997,2]
[368675595,1751291688244,-550.22488444,0.00013997,2]
[368675596,1751291688376,-10000.0,0.00013997,2]
[368675597,1751291688415,-10000.0,0.00013997,2]
[368675598,1751291688520,-322.33557487,0.00013997,2]
[368675599,1751291688530,-9677.66442513,0.00013997,2]
[368675600,1751291688682,-10000.0,0.00013997,2]
[368675601,1751291688721,1712.7,0.00013072,2]
[368675602,1751291688797,-10000.0,0.00013997,2]
[368675603,1751291688866,-209.54225793,0.000139,2]
[368675604,1751291688876,-9790.45774207,0.00013997,2]
[368675605,1751291688991,-10000.0,0.00013997,2]
[368675606,1751291690206,-10000.0,0.00013997,2]
[368675608,1751291716869,-300.0,0.00013991,2]
[368675609,1751291716920,-1200.0,0.00013991,2]
[368675610,1751291717039,-7000.0,0.00013992,2]
[368675611,1751291717134,-10000.0,0.00013992,2]
[368675612,1751291717454,-4805.198707,0.00013992,2]
[368675613,1751291717495,-389.602586,0.00013992,2]
[368675614,1751291717693,-591.14708415,0.00013997,2]
[368675615,1751291717740,-500.0,0.00013997,2]
[368675616,1751291717787,-500.0,0.00013997,2]
[368675617,1751291717837,-500.0,0.00013997,2]
[368675618,1751291717883,-198.53281067,0.00013997,2]
[368675619,1751291717930,-1243.82,0.00013997,2]
[368675620,1751291717978,-708.19,0.00013997,2]
[368675621,1751291718027,-591.8,0.00013997,2]
[368675622,1751291718325,-1327.24,0.00013997,2]
[368675623,1751291718373,-490.0,0.00013997,2]
[368675624,1751291718661,-1382.58,0.00013997,2]
[368675625,1751291718771,-5315.96021036,0.00013997,2]
[368675626,1751291718947,-10000.0,0.00013997,2]
[368675627,1751291719019,-1382.58,0.00013997,2]
[368675628,1751291719073,-7234.84,0.00013997,2]
[368675629,1751291719254,-10000.0,0.00013997,2]
[368675630,1751291719387,166.9,0.00013063,2]
[368675631,1751291720975,-690.23,0.00013997,2]
[368675632,1751291721025,-490.0,0.00013997,2]
[368675633,1751291721190,-7639.54,0.00013997,2]
[368675634,1751291721339,-10000.0,0.00013997,2]
[368675635,1751291723669,-813.42,0.00013997,2]
[368675636,1751291723721,-2015.86,0.00013997,2]
[368675637,1751291723879,-4341.44,0.00013997,2]
[368675638,1751291723999,-10000.0,0.00013997,2]
[368675639,1751291724074,-10000.0,0.00013997,2]
[368675640,1751291725670,-10000.0,0.00013997,2]
[368675641,1751291725840,-10000.0,0.00013997,2]
[368675642,1751291726012,-10000.0,0.00013997,2]
[368675643,1751291726185,-10000.0,0.00013997,2]
[368675644,1751291726396,-10000.0,0.00013997,2]
[368675645,1751291726559,-10000.0,0.00013997,2]
[368675646,1751291726729,-10000.0,0.00013997,2]
[368675647,1751291726896,-10000.0,0.00013997,2]
[368675648,1751291727055,-10000.0,0.00013997,2]
[368675649,1751291727738,-10000.0,0.00013997,2]
[368675650,1751291727780,-10000.0,0.00013997,2]
[368675651,1751291727815,-10000.0,0.00013997,2]
[368675652,1751291727898,-10000.0,0.00013997,2]
[368675653,1751291728029,-10000.0,0.00013997,2]
[368675654,1751291728134,-10000.0,0.00013997,2]
[368675655,1751291728425,-10000.0,0.00013997,2]
[368675656,1751291728588,-10000.0,0.00013997,2]
[368675657,1751291728757,-10000.0,0.00013997,2]
[368675658,1751291729842,-2744.51,0.00013997,2]
[368675659,1751291729941,-4510.98,0.00013997,2]
[368675660,1751291730031,-10000.0,0.00013997,2]
[368675661,1751291730211,-163.941398,0.00013991,2]
[368675662,1751291730259,-490.0,0.00013997,2]
[368675663,1751291730409,-8692.117204,0.00013997,2]
[368675664,1751291730491,-10000.0,0.00013997,2]
[368675665,1751291730572,-10000.0,0.00013997,2]
[368675666,1751291730775,-10000.0,0.00013997,2]
[368675667,1751291730950,-10000.0,0.00013997,2]
[368675668,1751291731135,-10000.0,0.00013997,2]
[368675669,1751291731313,-10000.0,0.00013997,2]
[368675670,1751291731499,-10000.0,0.00013997,2]
[368675671,1751291731663,-490.0,0.00013997,2]
[368675672,1751291731743,-9020.0,0.00013997,2]
[368675673,1751291731896,-10000.0,0.00013997,2]
[368675674,1751291732002,-10000.0,0.00013997,2]
[368675675,1751291732276,-10000.0,0.00013997,2]
[368675676,1751291732445,-10000.0,0.00013997,2]
[368675677,1751291732661,-10000.0,0.00013997,2]
[368675678,1751291732807,-10000.0,0.00013997,2]
[368675679,1751291734488,-3985.26,0.00013997,2]
[368675680,1751291734936,-2029.48,0.00013997,2]
[368675681,1751291735124,-1607.72,0.00013997,2]
[368675682,1751291735316,-6784.56,0.00013997,2]
[368675683,1751291735359,-10000.0,0.00013997,2]
[368675684,1751291736034,-10000.0,0.00013997,2]
[368675685,1751291736232,-1102.02961517,0.00013997,2]
[368675686,1751291736426,-8897.97038483,0.00013997,2]
[368675687,1751291736525,-1102.02961517,0.00013997,2]
[368675688,1751291736574,-7795.94076966,0.00013997,2]
[368675689,1751291736641,-10000.0,0.00013997,2]
[368675690,1751291736681,-10000.0,0.00013997,2]
[368675691,1751291736738,-10000.0,0.00013997,2]
[368675692,1751291736813,-10000.0,0.00013997,2]
[368675693,1751291736887,-10000.0,0.00013997,2]
[368675694,1751291736932,-10000.0,0.00013997,2]
[368675695,1751291799759,-843.2866551,0.00013854,2]
[368675696,1751291799813,-150.0,0.00013893,2]
[368675697,1751291799871,-150.0,0.00013954,2]
[368675698,1751291799921,-3633.4198038,0.00013992,2]
[368675699,1751291800783,-968.66,0.00013997,2]
[368675700,1751291800828,-818.09,0.00013997,2]
[368675701,1751291800877,-1579.52,0.00013997,2]
[368675702,1751291800930,-1576.12,0.00013997,2]
[368675703,1751291801401,-1223.47,0.00013997,2]
[368675704,1751291801444,-490.0,0.00013997,2]
[368675705,1751291801488,-3211.56,0.00013997,2]
[368675706,1751291801576,-149.94,0.00013997,2]
[368675707,1751291801623,-758.06,0.00013997,2]
[368675708,1751291801668,-3596.0,0.00013997,2]
[368675709,1751291801783,-1331.62,0.00013997,2]
[368675710,1751291801824,-490.0,0.00013997,2]
[368675711,1751291801867,-503.29,0.00013997,2]
[368675713,1751291801913,-163.941398,0.00013997,2]
[368675714,1751291801956,-1394.41,0.00013997,2]
[368675715,1751291802001,-796.677204,0.00013997,2]
[368675716,1751291802142,-640.122796,0.00013997,2]
[368675717,1751291802192,-1456.81,0.00013997,2]
[368675718,1751291802238,-1600.35,0.00013997,2]
[368675719,1751291802281,-490.0,0.00013997,2]
[368675720,1751291802324,-490.0,0.00013997,2]
[368675721,1751291802855,-1599.9,0.00013997,2]
[368675722,1751291802903,-500.0,0.00013997,2]
[368675723,1751291802951,-2693.03,0.00013997,2]
[368675724,1751291803188,-414.14,0.00013997,2]
[368675725,1751291803232,-490.0,0.00013997,2]
[368675726,1751291803276,-944.89,0.00013997,2]
[368675727,1751291803320,-1103.46,0.00013997,2]
[368675728,1751291803362,-1143.4,0.00013997,2]
[368675729,1751291803405,-689.29,0.00013997,2]
[368675730,1751291803686,-3436.35,0.00013997,2]
[368675731,1751291803731,-490.0,0.00013997,2]
[368675732,1751291803776,-139.01,0.00013998,2]
[368675733,1751291804003,-1869.28,0.00013998,2]
[368675734,1751291804047,-490.0,0.00013998,2]
[368675735,1751291804090,-490.0,0.00013998,2]
[368675736,1751291804137,-1081.89,0.00013998,2]
[368675737,1751291804181,-752.44,0.00013998,2]
[368675738,1751291804425,-737.16,0.00013998,2]
[368675739,1751291804486,-490.0,0.00013998,2]
[368675740,1751291804532,-490.0,0.00013998,2]
[368675741,1751291804579,-2660.78,0.00013998,2]
[368675742,1751291804818,-1244.12,0.00013998,2]
[368675743,1751291804862,-490.0,0.00013998,2]
[368675744,1751291804907,-490.0,0.00013998,2]
[368675745,1751291804952,-490.0,0.00013998,2]
[368675746,1751291804998,-490.0,0.00013998,2]
[368675747,1751291805048,-1773.3,0.00013998,2]
[368675748,1751291805143,-490.0,0.00013998,2]
[368675749,1751291805192,-3703.18,0.00013998,2]
[368675750,1751291805237,-599.71,0.00013998,2]
[368675751,1751291805588,-2568.35,0.00013998,2]
[368675752,1751291805631,-490.0,0.00013998,2]
[368675753,1751291805679,-490.0,0.00013998,2]
[368675754,1751291805722,-490.0,0.00013998,2]
[368675755,1751291805766,-490.0,0.00013998,2]
[368675756,1751291806003,-1512.19,0.00013998,2]
[368675757,1751291806048,-1929.09,0.00013998,2]
[368675758,1751291806099,-490.0,0.00013998,2]
[368675759,1751291806146,-490.0,0.00013998,2]
[368675760,1751291806190,-488.39,0.00013998,2]
[368675761,1751291806550,-809.3227697,0.00013989,2]
[368675762,1751291806603,-180.66,0.00013998,2]
[368675763,1751291806657,-652.74,0.00013998,2]
[368675764,1751291806705,-1272.97,0.00013998,2]
[368675765,1751291806755,-270.172335,0.00013998,2]
[368675766,1751291806800,-490.0,0.00013998,2]
[368675767,1751291806854,-490.0,0.00013998,2]
[368675768,1751291806901,-151.0,0.00013998,2]
[368675769,1751291806949,-151.0,0.00013998,2]
[368675770,1751291807004,-151.0,0.00013998,2]
[368675771,1751291807049,-272.2697906,0.00013998,2]
[368675772,1751291807403,-217.7302094,0.00013998,2]
[368675773,1751291807448,-151.0,0.00013998,2]
[368675774,1751291807498,-722.42,0.00013998,2]
[368675775,1751291807543,-490.0,0.00013998,2]
[368675776,1751291807592,-151.0,0.00013998,2]
[368675777,1751291807636,-490.0,0.00013998,2]
[368675778,1751291807681,-490.0,0.00013998,2]
[368675779,1751291807727,-1952.3695812,0.00013998,2]
[368675780,1751291807946,-670.9604188,0.00013998,2]
[368675781,1751291807991,-1805.22,0.00013998,2]
[368675782,1751291808036,-791.3091624,0.00013998,2]
[368675783,1751291808069,23900.0,0.00013064,2]
[368675784,1751291808218,-3465.0208376,0.00013998,2]
[368675785,1751291808264,-575.3683248,0.00013998,2]
[368675786,1751291808574,-1042.98,0.00013997,2]
[368675787,1751291808622,-1919.2216752,0.00013998,2]
[368675788,1751291808668,-490.0,0.00013998,2]
[368675789,1751291808712,-133.7466496,0.00013998,2]
[368675790,1751291808935,-2828.1033504,0.00013998,2]
[368675791,1751291808985,-772.21,0.00013998,2]
[368675792,1751291809033,-490.0,0.00013998,2]
[368675793,1751291809088,-490.0,0.00013998,2]
[368675794,1751291809136,-349.3732992,0.00013998,2]
[368675795,1751291809800,-140.6267008,0.00013998,2]
[368675796,1751291809844,-2374.02,0.00013998,2]
[368675797,1751291809890,-498.31232954,0.00013998,2]
[368675798,1751291809934,-490.0,0.00013998,2]
[368675799,1751291810103,-1421.16,0.00013998,2]
[368675800,1751291810306,-2842.32,0.00013998,2]